bitfinex-derivatives/quotes_ETHF0:USTF0_20250831
["timestamp","ask_amount","ask_price","bid_price","bid_amount"]
[1756678131187,0.4891,4459.5,4459.4,0.7154]
[1756678132193,0.4891,4459.5,4459.4,0.4182]
[1756678134286,3.2078,4459.8,4459.4,0.4182]
[1756678134487,3.2078,4460.5,4460.4,0.4864]
[1756678134793,3.6969,4460.5,4460.4,0.4864]
[1756678134987,3.6969,4460.5,4460.4,0.7164]
[1756678135692,3.6969,4460.5,4459.9,0.23]
[1756678135693,0.1926,4460.0,4459.9,0.23]
[1756678135993,0.4891,4460.0,4459.9,0.4192]
[1756678136192,0.4891,4460.0,4459.9,0.7164]
[1756678136592,3.2078,4460.5,4459.9,0.7164]
[1756678136793,0.4891,4460.4,4460.3,0.4864]
[1756678136993,0.4891,4460.4,4460.3,0.1892]
[1756678137193,0.4891,4460.4,4460.0,0.23]
[1756678140298,0.4891,4460.4,4460.0,0.5272]
[1756678140499,0.1926,4460.4,4460.0,0.5272]
[1756678140695,0.4891,4460.1,4460.0,0.7164]
[1756678140899,0.2965,4460.4,4460.1,0.2972]
[1756678141099,0.4891,4460.4,4460.3,0.4864]
[1756678141701,3.2078,4460.5,4460.3,0.1892]
[1756678141898,3.2078,4460.5,4460.4,0.7154]
[1756678142096,0.229,4461.1,4460.5,0.2972]
[1756678142097,3.2078,4461.1,4460.5,0.2972]
[1756678142397,0.1926,4461.2,4461.1,0.4864]
[1756678142594,0.4891,4461.2,4461.1,0.4864]
[1756678142799,0.4891,4461.2,4461.1,0.1892]
[1756678143304,0.4891,4461.2,4461.1,0.4864]
[1756678143695,3.6969,4461.7,4461.6,0.1892]
[1756678143997,3.6969,4461.7,4461.6,0.4864]
[1756678144997,3.6969,4461.7,4461.6,0.1892]
[1756678145704,3.6969,4461.7,4461.3,0.2972]
[1756678149106,3.7055,4461.7,4461.6,0.1892]
[1756678149407,3.7055,4461.7,4461.6,0.4776]
[1756678156612,3.7055,4461.7,4460.9,0.2884]
[1756678156910,0.497,4461.1,4461.0,0.7029]
[1756678159511,0.1919,4461.1,4460.8,3.2078]
[1756678159712,0.497,4461.0,4460.9,0.229]
[1756678160012,0.497,4460.2,4460.1,3.3933]
[1756678160311,0.497,4460.2,4460.1,3.6817]
[1756678160513,0.497,4460.2,4460.1,3.9107]
[1756678160908,0.497,4461.1,4461.0,0.4739]
[1756678161316,0.3051,4461.5,4461.0,0.1855]
[1756678161517,0.1919,4461.2,4461.1,0.4739]
[1756678161812,0.497,4461.2,4461.1,0.7029]
[1756678163415,0.497,4461.2,4461.1,0.4739]
[1756678163919,0.497,4461.2,4461.1,0.7029]
[1756678165619,0.1919,4461.2,4461.1,0.7029]
[1756678167715,3.2078,4461.7,4461.2,0.2884]
[1756678167920,3.7048,4461.7,4461.6,0.4739]
[1756678170315,3.2078,4462.3,4462.0,0.1855]
[1756678170513,3.5129,4462.8,4462.3,0.1855]
[1756678170820,3.2078,4462.8,4462.6,0.1855]
[1756678171023,3.2078,4462.8,4462.7,0.4739]
[1756678171321,3.7048,4462.8,4462.7,0.4739]
[1756678172520,0.497,4462.8,4462.7,0.4739]
[1756678173725,0.497,4463.2,4463.1,0.1855]
[1756678173929,0.497,4463.2,4463.1,0.4739]
[1756678174728,0.1919,4463.2,4463.1,0.4739]
[1756678174917,3.2078,4463.3,4463.2,0.4739]
[1756678175120,0.1919,4463.3,4463.2,0.4739]
[1756678175326,0.3051,4464.2,4463.3,0.2884]
[1756678175512,0.3051,4464.2,4463.3,3.4962]
[1756678175711,0.3051,4464.2,4463.4,0.2884]
[1756678175924,0.3051,4464.2,4463.5,0.229]
[1756678176143,0.497,4463.6,4463.5,0.1855]
[1756678176333,0.497,4463.6,4463.5,0.229]
[1756678176623,0.497,4463.6,4463.5,0.7029]
[1756678177323,0.497,4463.6,4463.5,0.4145]
[1756678179220,0.497,4463.6,4463.2,0.2884]
[1756678179423,0.497,4463.6,4463.5,0.229]
[1756678180423,0.497,4463.6,4463.2,0.2884]
[1756678180622,0.497,4463.6,4463.5,0.229]
[1756678180926,0.497,4463.6,4463.5,0.4225]
[1756678181128,0.497,4463.6,4463.5,0.6991]
[1756678181429,0.497,4463.6,4463.5,0.4225]
[1756678181631,0.4882,4463.6,4463.5,0.229]
[1756678183532,0.1919,4463.6,4462.8,0.2766]
[1756678183724,0.1949,4463.4,4463.3,0.229]
[1756678183929,0.4912,4463.4,4463.3,0.229]
[1756678185125,0.4912,4463.4,4463.3,0.4225]
[1756678185431,0.4912,4463.4,4463.3,0.6991]
[1756678185833,0.4912,4463.4,4463.3,0.4225]
[1756678186331,0.4912,4463.4,4463.3,0.229]
[1756678188929,0.4912,4463.4,4462.7,3.2078]
[1756678188930,0.1949,4463.4,4462.7,3.2078]
[1756678189137,0.229,4464.2,4462.5,0.2766]
[1756678189138,0.4912,4462.8,4462.5,0.2766]
[1756678189335,0.4912,4462.7,4462.6,0.6991]
[1756678190632,0.4912,4462.7,4462.6,0.4701]
[1756678190934,0.4912,4462.7,4462.6,0.6991]
[1756678191239,0.4912,4462.3,4462.2,0.4701]
[1756678191432,0.4912,4462.3,4462.2,0.6991]
[1756678191939,0.4912,4462.3,4462.2,0.4701]
[1756678192231,0.4912,4462.3,4462.2,0.6991]
[1756678193338,3.4027,4462.3,4461.8,32.5596]
[1756678193635,0.4912,4462.0,4461.9,0.6991]
[1756678197741,0.4912,4462.0,4461.9,0.4701]
[1756678198038,0.4912,4462.0,4461.9,0.6991]
[1756678198436,0.1949,4462.0,4461.9,0.6991]
[1756678198739,0.4912,4462.7,4462.6,0.4701]
[1756678202638,0.4912,4462.7,4462.6,0.1935]
[1756678202841,0.4912,4462.7,4462.6,0.4701]
[1756678205247,3.2078,4462.8,4462.6,0.1935]
[1756678205436,3.2078,4463.8,4463.6,0.1935]
[1756678205745,3.699,4464.3,4463.9,0.2766]
[1756678205931,3.4027,4464.3,4463.9,0.4326]
[1756678206142,0.4912,4464.0,4463.9,0.6261]
[1756678206735,0.4912,4464.0,4463.9,0.3495]
[1756678207643,0.4912,4464.0,4463.9,0.6261]
[1756678214648,3.483,4464.3,4464.0,0.2947]
[1756678214847,3.483,4464.3,4464.2,0.1886]
[1756678215045,3.483,4464.3,4464.2,0.4833]
[1756678215245,3.6743,4464.3,4464.2,0.4833]
[1756678216253,3.6743,4464.3,4464.2,0.1886]
[1756678216445,0.1913,4464.0,4463.9,0.6393]
[1756678216651,0.4665,4464.0,4463.9,0.6393]
[1756678217245,0.4665,4464.0,4463.6,0.2947]
[1756678217445,0.4665,4463.6,4463.5,0.7123]
[1756678219245,0.4665,4463.6,4463.5,0.4833]
[1756678219448,3.483,4463.8,4463.5,0.1886]
[1756678219646,3.2078,4463.8,4463.7,0.1886]
[1756678219844,3.2078,4463.8,4463.7,0.4833]
[1756678223558,3.2078,4464.3,4464.1,0.1886]
[1756678223759,3.2078,4464.3,4464.2,0.4833]
[1756678224765,3.2078,4464.9,4464.8,0.4833]
[1756678225055,3.2078,4464.9,4464.8,0.7123]
[1756678225256,3.6743,4464.9,4464.8,0.7123]
[1756678226165,3.6743,4464.9,4464.8,0.1886]
[1756678226364,3.6743,4464.9,4464.8,0.7123]
[1756678226858,3.6743,4464.9,4463.9,3.2078]
[1756678226859,0.2752,4464.8,4464.0,0.2947]
[1756678227052,0.1913,4464.6,4464.5,0.229]
[1756678227258,0.4665,4464.6,4464.5,0.229]
[1756678227461,0.4665,4464.6,4464.5,0.7123]
[1756678229262,0.4665,4464.6,4464.5,0.4833]
[1756678229458,0.4665,4464.6,4464.5,0.7123]
[1756678230359,0.4665,4464.6,4464.1,0.2947]
[1756678230661,3.2078,4464.9,4463.9,3.2078]
[1756678230662,0.1913,4464.3,4464.2,0.229]
[1756678230968,0.4665,4464.3,4464.2,0.7123]
[1756678231769,0.2752,4464.8,4464.3,0.2947]
[1756678231969,0.4665,4464.8,4464.7,0.1886]
[1756678232166,0.4665,4464.8,4464.7,0.4833]
[1756678233054,0.4665,4464.8,4464.4,0.2947]
[1756678233258,0.4665,4463.8,4463.7,0.4833]
[1756678233453,0.2752,4463.7,4463.6,32.269]
[1756678233761,0.2752,4463.7,4463.6,32.498]
[1756678234058,0.2752,4463.7,4463.6,32.269]
[1756678234562,0.4665,4463.7,4463.6,0.4833]
[1756678237964,0.4928,4464.4,4464.3,0.1921]
[1756678238166,3.2078,4464.5,4464.4,0.4674]
[1756678238761,3.7006,4464.5,4464.4,0.4674]
[1756678238963,3.7006,4464.5,4464.4,0.6964]
[1756678241565,3.7006,4464.5,4464.4,0.4674]
[1756678241771,3.7006,4464.5,4464.4,0.6964]
[1756678242067,1.20823111,4466.5,4464.9,0.2753]
[1756678242275,3.2078,4466.1,4465.1,0.2753]
[1756678242471,0.2928,4466.0,4465.1,0.2753]
[1756678243367,0.2928,4466.0,4465.0,0.229]
[1756678243368,0.4928,4466.0,4465.9,0.1921]
[1756678243674,0.4928,4466.5,4466.4,0.1921]
[1756678244074,0.4928,4466.5,4466.0,0.2753]
[1756678244274,0.4928,4466.5,4465.9,0.229]
[1756678244971,0.2,4466.5,4465.9,0.229]
[1756678245171,0.4928,4466.4,4466.3,0.1921]
[1756678246980,0.4928,4466.4,4466.0,0.2753]
[1756678247278,0.4928,4466.4,4465.9,0.229]
[1756678247469,0.2,4466.4,4465.9,0.5043]
[1756678247664,0.2,4466.0,4465.9,0.6964]
[1756678247973,0.4928,4466.0,4465.9,0.6964]
[1756678248176,0.4928,4466.0,4465.9,0.229]
[1756678249677,0.2928,4466.8,4466.0,0.2753]
[1756678250477,0.2,4466.1,4466.0,0.4674]
[1756678250678,0.4928,4466.1,4466.0,0.4674]
[1756678251177,0.4928,4466.1,4466.0,0.6964]
[1756678252080,0.2,4466.1,4466.0,0.6964]
[1756678252277,0.2928,4466.8,4466.1,0.2753]
[1756678252479,0.4928,4466.8,4466.7,0.1921]
[1756678252784,0.4928,4466.8,4466.7,0.4674]
[1756678253181,0.4928,4466.8,4466.7,0.1921]
[1756678253376,0.4928,4466.8,4466.0,0.229]
[1756678253574,0.4928,4466.8,4466.1,0.2753]
[1756678259183,0.4928,4466.3,4466.2,0.4674]
[1756678260088,3.7006,4466.4,4466.3,0.4674]
[1756678260279,3.7006,4466.4,4466.3,0.1921]
[1756678260584,3.7006,4466.4,4466.1,0.229]
[1756678260787,3.2078,4466.4,4466.2,0.4674]
[1756678260986,0.4928,4466.3,4466.2,0.4674]
[1756678262777,0.2,4466.3,4465.6,0.2753]
[1756678262984,0.2,4465.8,4465.7,0.6964]
[1756678263288,0.4928,4465.8,4465.7,0.6964]
[1756678264581,0.2928,4466.1,4465.7,0.6964]
[1756678264787,0.2928,4466.1,4466.0,0.4674]
[1756678264788,0.4928,4466.1,4466.0,0.4674]
[1756678273188,3.2078,4467.0,4466.1,0.3037]
[1756678273389,0.2012,4467.1,4467.0,0.4971]
[1756678273588,0.4833,4467.1,4467.0,0.4971]
[1756678273795,0.4833,4467.1,4467.0,0.1934]
[1756678274088,0.4833,4466.2,4466.1,0.4971]
[1756678274289,0.2012,4466.2,4466.1,0.94998]
[1756678274493,0.4833,4467.4,4467.3,0.4971]
[1756678274692,0.4833,4467.4,4466.1,0.45288]
[1756678274693,1.03377996,4467.4,4466.8,0.229]
[1756678274887,3.2078,4467.5,4466.8,0.4224]
[1756678274888,0.2012,4466.9,4466.8,0.4224]
[1756678275089,0.4833,4466.9,4466.8,0.7261]
[1756678275693,0.2012,4466.9,4466.8,0.7261]
[1756678276089,0.2821,4467.1,4466.8,0.7261]
[1756678276294,3.2078,4467.5,4466.9,0.3037]
[1756678276597,0.4833,4467.0,4466.9,0.4971]
[1756678279095,3.2078,4467.5,4466.8,0.229]
[1756678279096,3.409,4467.5,4467.4,0.4971]
[1756678279493,3.409,4467.5,4467.4,0.7261]
[1756678279696,3.6911,4467.5,4467.4,0.7261]
[1756678280194,3.6911,4467.5,4467.4,0.4224]
[1756678281099,3.6911,4467.5,4467.4,0.7261]
[1756678281698,3.6911,4467.5,4467.4,0.4971]
[1756678281899,3.409,4467.5,4467.3,0.229]
[1756678282104,0.4833,4467.4,4467.3,0.229]
[1756678288207,0.4833,4467.4,4467.3,0.7261]
[1756678297426,0.4833,4468.0,4467.9,0.1934]
[1756678297721,0.4833,4468.0,4467.7,0.3037]
[1756678297924,0.2016,4467.2,4467.0,3.2078]
[1756678298118,0.4806,4467.2,4467.1,0.228]
[1756678298318,0.279,4467.1,4467.0,3.2078]
[1756678298623,0.4806,4467.1,4467.0,3.9153]
[1756678301424,0.279,4468.0,4467.1,0.2926]
[1756678301628,0.4806,4467.8,4467.7,0.4795]
[1756678302223,0.70443001,4467.8,4467.7,0.4795]
[1756678302729,0.4806,4467.8,4467.7,0.4795]
[1756678304426,0.279,4467.7,4467.1,0.2926]
[1756678304627,0.4806,4467.2,4467.1,0.4795]
[1756678304823,0.4806,4467.2,4467.1,0.7075]
[1756678305927,0.4806,4468.0,4467.9,0.4795]
[1756678306226,0.4806,4468.0,4467.9,0.228]
[1756678308625,0.4806,4468.0,4467.9,0.7075]
[1756678309134,0.4806,4468.0,4467.9,0.4795]
[1756678316837,0.4806,4468.0,4467.7,0.5206]
[1756678317034,0.2016,4467.8,4467.7,0.7075]
[1756678317338,0.4806,4467.8,4467.7,0.7075]
[1756678318136,0.4806,4467.8,4467.7,0.4795]
[1756678318435,0.4806,4467.8,4467.7,0.7075]
[1756678320933,0.4806,4467.2,4467.1,0.4795]
[1756678321134,0.279,4467.5,4467.1,0.7075]
[1756678321334,0.279,4468.0,4467.2,0.2926]
[1756678322740,0.4806,4467.3,4466.9,0.2926]
[1756678322940,0.2016,4466.2,4466.1,1.99166036]
[1756678323250,0.4806,4466.2,4466.1,0.4795]
[1756678324251,0.4806,4466.2,4466.1,0.1869]
[1756678324554,0.4806,4466.2,4466.0,0.228]
[1756678324754,0.4806,4466.2,4465.9,3.2078]
[1756678324949,0.4806,4466.1,4466.0,0.228]
[1756678325249,0.279,4466.0,4465.8,0.2926]
[1756678325447,0.4806,4465.9,4465.8,0.4795]
[1756678325642,0.4806,4465.9,4465.8,0.7075]
[1756678326749,0.279,4465.8,4465.2,0.2926]
[1756678326956,0.4806,4465.3,4465.2,0.4795]
[1756678327155,0.4806,4465.3,4465.2,0.7075]
[1756678327555,0.2016,4465.3,4465.2,0.7075]
[1756678327752,3.2078,4466.5,4465.3,0.2926]
[1756678327957,0.2883,4466.3,4465.3,0.2926]
[1756678328456,0.22392,4466.2,4465.3,0.2926]
[1756678328652,0.2883,4466.1,4465.3,0.2926]
[1756678329654,0.4842,4465.4,4465.3,0.4892]
[1756678329849,0.4842,4465.4,4465.1,3.2078]
[1756678330149,3.692,4465.2,4464.4,3.2078]
[1756678330355,0.4842,4464.6,4464.5,0.708]
[1756678331759,0.4842,4464.6,4464.5,0.48]
[1756678331960,0.4842,4464.6,4464.5,0.708]
[1756678332161,0.4842,4464.6,4464.5,0.4246]
[1756678332759,0.4842,4464.6,4464.5,0.708]
[1756678340564,0.4842,4464.6,4464.5,0.48]
[1756678340759,0.4842,4464.6,4464.5,0.708]
[1756678342860,0.4842,4464.6,4464.5,0.48]
[1756678343060,0.2883,4464.5,4463.6,0.2834]
[1756678343266,0.4842,4463.7,4463.6,0.708]
[1756678344860,0.2883,4464.5,4464.4,0.1966]
[1756678345060,3.692,4464.6,4464.5,0.48]
[1756678346059,0.2883,4464.5,4464.2,0.5114]
[1756678346259,0.4842,4464.3,4464.2,0.708]
[1756678347264,0.4842,4464.0,4463.9,0.708]
[1756678347861,0.1959,4464.0,4463.9,0.708]
[1756678348256,3.2078,4464.6,4463.9,0.4246]
[1756678348460,0.70820001,4464.5,4464.4,0.1966]
[1756678348765,0.70820001,4464.5,4464.4,0.48]
[1756678349761,0.4842,4464.5,4464.4,0.48]
[1756678350865,0.4842,4464.5,4464.4,0.1966]
[1756678351064,0.4842,4464.5,4464.1,0.2834]
[1756678351264,0.4842,4464.5,4463.9,0.228]
[1756678351461,0.4842,4464.5,4464.0,0.2834]
[1756678351662,0.4842,4464.5,4463.9,0.228]
[1756678351863,0.4842,4464.5,4464.0,0.2834]
[1756678352064,0.4842,4464.5,4463.9,0.228]
[1756678352462,0.4842,4464.5,4464.0,0.2834]
[1756678353162,0.4842,4464.5,4463.9,0.228]
[1756678353558,0.4842,4464.5,4464.0,0.2834]
[1756678353762,0.4842,4464.5,4463.9,0.228]
[1756678354468,0.4842,4464.5,4464.0,0.2834]
[1756678354868,0.4842,4463.5,4463.4,32.245]
[1756678355068,0.4842,4463.5,4463.4,32.473]
[1756678355468,0.4842,4463.5,4463.4,32.7564]
[1756678355860,0.4842,4463.5,4462.9,0.2834]
[1756678356066,0.1959,4463.1,4463.0,0.708]
[1756678356368,0.4842,4463.1,4463.0,0.708]
[1756678356966,0.4842,4463.1,4463.0,0.48]
[1756678357160,0.2883,4463.0,4462.3,0.2834]
[1756678357363,0.2883,4463.0,4462.2,3.2078]
[1756678357364,0.228,4463.4,4462.4,0.228]
[1756678357559,0.85390612,4463.3,4462.5,0.2834]
[1756678357765,0.2883,4463.3,4462.5,0.2834]
[1756678361370,0.3031,4463.3,4462.5,0.2834]
[1756678367777,0.56683402,4463.2,4462.5,0.2834]
[1756678367980,0.3031,4463.3,4462.5,0.2834]
[1756678368178,0.3031,4463.1,4462.5,0.2834]
[1756678368379,0.4919,4463.1,4463.0,0.2019]
[1756678368779,0.4919,4463.1,4463.0,0.5055]
[1756678373682,0.4919,4463.1,4462.6,0.3036]
[1756678374279,0.4919,4463.1,4462.4,0.3036]
[1756678379988,0.4919,4463.1,4463.0,0.5055]
[1756678380380,0.4919,4463.1,4463.0,0.2019]
[1756678381588,0.4919,4463.1,4463.0,0.5055]
[1756678381889,0.4919,4463.1,4463.0,0.2019]
[1756678382486,0.4919,4463.1,4463.0,0.5055]
[1756678383889,0.3031,4463.4,4463.0,0.2019]
[1756678384088,3.2078,4463.5,4463.4,0.5055]
[1756678384286,0.3031,4463.7,4463.6,0.2019]
[1756678384482,3.2078,4464.1,4463.6,0.5055]
[1756678384686,0.7569057,4464.0,4463.9,0.2019]
[1756678384889,0.7569057,4464.0,4463.9,0.5055]
[1756678385295,1.0600057,4464.0,4463.9,0.5055]
[1756678385589,3.2078,4464.1,4463.9,0.2019]
[1756678385797,3.2078,4464.1,4464.0,0.5055]
[1756678387699,3.6997,4464.1,4464.0,0.5055]
[1756678388198,3.2078,4464.1,4464.0,0.5055]
[1756678388399,3.6934,4464.1,4464.0,0.5055]
[1756678389599,0.4856,4464.1,4464.0,0.5055]
[1756678396209,0.1857,4463.4,4463.3,0.4859]
[1756678396401,0.2999,4463.3,4462.8,0.5168]
[1756678396599,0.1857,4462.9,4462.8,0.7139]
[1756678396800,0.4856,4462.9,4462.8,0.7139]
[1756678398206,0.2999,4462.8,4462.2,0.2888]
[1756678398509,0.2999,4462.9,4462.4,0.4859]
[1756678398703,0.4856,4463.1,4463.0,0.4859]
[1756678398904,0.1857,4463.1,4463.0,0.4859]
[1756678399107,3.2078,4463.2,4463.1,0.4859]
[1756678400009,3.2078,4463.2,4463.1,0.7139]
[1756678400199,3.2078,4463.9,4463.1,0.4251]
[1756678400404,0.4856,4463.8,4463.7,0.1971]
[1756678400605,0.4856,4463.8,4463.7,0.4859]
[1756678400804,0.4856,4463.8,4463.7,0.1971]
[1756678401005,0.4856,4463.8,4463.3,0.228]
[1756678401215,0.4856,4463.8,4463.4,0.2888]
[1756678401404,0.4856,4463.8,4463.2,0.228]
[1756678401604,0.4856,4463.8,4463.3,0.2888]
[1756678402405,0.1857,4463.9,4463.8,0.4859]
[1756678402606,3.2078,4464.4,4463.8,0.4859]
[1756678402910,3.2078,4464.4,4463.2,3.4358]
[1756678402911,3.3935,4464.4,4464.3,0.1971]
[1756678403105,3.3935,4464.4,4464.3,0.4859]
[1756678403506,3.6934,4464.4,4464.3,0.4859]
[1756678404809,3.6934,4464.4,4463.2,3.4358]
[1756678404810,3.6934,4464.4,4463.9,0.2888]
[1756678405110,0.4856,4463.7,4463.6,0.7139]
[1756678409112,3.2078,4464.4,4463.6,0.7139]
[1756678409317,0.4856,4464.3,4464.2,0.1971]
[1756678409517,0.4856,4464.3,4464.2,0.4859]
[1756678411908,3.2078,4464.9,4464.8,0.1971]
[1756678412109,3.6934,4464.9,4464.8,0.4859]
[1756678412309,0.4856,4464.9,4464.8,0.4859]
[1756678412515,3.2078,4465.4,4465.3,0.4859]
[1756678412714,3.6934,4465.4,4465.3,0.4859]
[1756678414221,0.2999,4465.8,4465.3,0.4859]
[1756678414415,0.2999,4466.0,4465.4,0.2888]
[1756678414715,0.4856,4466.0,4465.9,0.4859]
[1756678416922,3.6934,4466.6,4466.5,0.4859]
[1756678417429,3.6934,4466.6,4466.5,0.1971]
[1756678420026,3.6934,4466.6,4466.5,0.4828]
[1756678420234,3.6934,4466.6,4466.5,0.1971]
[1756678421527,3.6934,4466.6,4465.8,0.4267]
[1756678421832,0.5003,4465.9,4465.8,0.6258]
[1756678427840,0.5003,4465.9,4465.8,0.4848]
[1756678428040,0.5003,4465.9,4465.8,0.7128]
[1756678428235,3.2078,4466.6,4465.9,0.2857]
[1756678428437,0.5003,4466.5,4466.4,0.1991]
[1756678428637,0.5003,4466.5,4466.4,0.4848]
[1756678430136,3.2078,4467.2,4466.4,0.1991]
[1756678430336,0.3008,4467.1,4466.5,0.2857]
[1756678430536,0.1995,4466.6,4466.5,0.4848]
[1756678430741,0.5003,4466.6,4466.5,0.4848]
[1756678430936,0.5003,4466.6,4466.5,0.7128]
[1756678437142,0.5003,4466.6,4466.5,0.4271]
[1756678437745,0.5003,4466.6,4466.5,0.7128]
[1756678440447,0.3008,4467.6,4466.6,0.2857]
[1756678440648,1.06235134,4467.5,4467.4,0.1991]
[1756678440849,0.5003,4467.5,4467.4,0.4848]
[1756678441236,0.5003,4467.5,4467.4,0.1991]
[1756678441440,1.06297419,4467.5,4467.4,0.1991]
[1756678441637,0.5003,4467.5,4467.4,0.1991]
[1756678442042,0.5003,4467.5,4467.4,0.4848]
[1756678443146,0.3008,4467.8,4467.4,0.4848]
[1756678443351,0.3008,4468.3,4467.5,0.2857]
[1756678443649,0.3008,4468.1,4467.5,0.2857]
[1756678443847,0.56267449,4468.0,4467.5,0.2857]
[1756678444152,1.06297449,4467.9,4467.8,0.4848]
[1756678444342,1.06297449,4467.9,4467.8,0.1991]
[1756678446047,4.27077449,4467.9,4467.8,0.1991]
[1756678449054,4.27077449,4467.9,4467.8,0.4895]
[1756678449552,3.7081,4467.9,4467.8,0.4895]
[1756678449853,3.7081,4467.9,4467.8,0.1991]
[1756678450053,4.27036111,4467.9,4467.8,0.1991]
[1756678450253,3.7081,4467.9,4467.8,0.1991]
[1756678450454,3.7081,4467.9,4467.6,0.2904]
[1756678452156,3.7081,4467.9,4467.8,0.2012]
[1756678452357,3.7081,4467.9,4467.8,0.4916]
[1756678454149,3.7081,4467.9,4467.4,0.2904]
[1756678454555,3.7081,4467.9,4467.3,0.228]
[1756678454760,3.7081,4467.9,4467.4,0.2904]
[1756678454960,3.7081,4467.9,4467.3,0.228]
[1756678455155,3.7081,4467.9,4467.4,0.2904]
[1756678455961,3.7081,4467.9,4467.3,0.228]
[1756678456463,3.4073,4467.9,4467.1,0.2904]
[1756678456664,0.482,4467.5,4467.4,0.7186]
[1756678460968,3.2078,4468.4,4467.4,0.7186]
[1756678461165,0.2807,4468.2,4467.5,0.2904]
[1756678463573,0.2013,4467.6,4467.5,0.4916]
[1756678463872,0.482,4467.6,4467.5,0.4916]
[1756678464071,0.2013,4467.2,4467.1,0.4916]
[1756678464273,0.2013,4467.2,4467.1,0.7186]
[1756678464575,0.2807,4467.8,4467.2,0.2904]
[1756678464872,0.482,4467.8,4467.7,0.2012]
[1756678465072,0.482,4467.8,4467.7,0.4916]
[1756678465275,0.482,4467.8,4467.7,0.7186]
[1756678481388,0.2944,4468.6,4467.8,0.2855]
[1756678481688,0.4839,4468.6,4468.5,0.4878]
[1756678481887,1.04680373,4468.6,4468.5,0.4878]
[1756678482087,0.4839,4468.6,4468.5,0.4878]
[1756678483184,0.1895,4468.6,4468.4,0.5125]
[1756678483385,0.4839,4468.5,4468.4,0.5125]
[1756678483888,0.4839,4468.4,4468.3,0.227]
[1756678484587,0.4839,4468.4,4468.3,0.7148]
[1756678490884,3.5022,4468.6,4468.4,0.2855]
[1756678491190,3.3973,4468.6,4468.5,0.4878]
[1756678491588,3.6917,4468.6,4468.5,0.4878]
[1756678493994,3.3973,4468.6,4468.1,0.2855]
[1756678494197,0.4839,4468.1,4468.0,0.7148]
[1756678498712,0.1895,4468.1,4468.0,0.7148]
[1756678499308,0.4839,4468.1,4468.0,0.7148]
[1756678499709,3.2078,4468.6,4468.1,0.2855]
[1756678499910,3.6917,4468.6,4468.5,0.4878]
[1756678500211,3.6917,4468.6,4468.5,0.2023]
[1756678500607,3.6917,4468.6,4468.5,0.4878]
[1756678502913,0.4839,4468.6,4468.5,0.4878]
[1756678503113,0.4839,4468.6,4468.0,0.227]
[1756678503313,0.4839,4468.6,4468.1,0.2855]
[1756678504209,0.4839,4468.6,4468.5,0.2023]
[1756678504410,0.4839,4468.6,4468.5,0.4878]
[1756678505714,0.4839,4469.3,4469.2,0.4878]
[1756678505918,3.3973,4469.8,4469.7,0.2023]
[1756678506111,3.95847088,4469.8,4469.7,0.05042874]
[1756678506415,3.95847088,4469.8,4469.7,0.33592874]
[1756678506613,4.25287088,4469.8,4469.7,0.33592874]
[1756678507211,3.6917,4469.8,4469.7,0.33592874]
[1756678507809,3.6917,4469.8,4469.2,0.2965]
[1756678508010,0.1,4470.2,4469.1,3.2078]
[1756678508011,0.2749,4469.7,4469.1,3.2078]
[1756678508210,0.1983,4468.9,4468.8,0.227]
[1756678508415,0.4732,4468.9,4468.8,0.227]
[1756678509119,0.1983,4468.9,4468.8,0.4185]
[1756678509310,0.1983,4468.9,4468.8,0.715]
[1756678509714,0.4732,4468.9,4468.8,0.715]
[1756678509909,0.4732,4468.9,4468.8,0.488]
[1756678510114,0.4732,4468.9,4468.8,0.715]
[1756678510720,0.4732,4468.9,4468.8,0.488]
[1756678510924,0.4732,4468.9,4468.8,0.715]
[1756678512521,0.1983,4468.9,4468.8,0.715]
[1756678512716,3.2078,4469.8,4468.9,0.2965]
[1756678512717,0.2749,4469.7,4468.9,0.2965]
[1756678513020,0.4732,4469.7,4469.6,0.1915]
[1756678513822,0.4732,4469.7,4469.4,0.2965]
[1756678514016,0.4732,4469.7,4468.8,0.227]
[1756678514017,0.4732,4469.7,4468.9,0.2965]
[1756678515018,0.4732,4469.7,4469.6,0.1915]
[1756678515226,0.4732,4469.7,4469.6,0.488]
[1756678518923,0.4732,4469.7,4469.6,0.715]
[1756678519520,0.4732,4469.7,4469.0,3.2078]
[1756678519521,0.2749,4469.6,4469.1,0.2965]
[1756678519718,0.4732,4469.2,4469.1,0.488]
[1756678519923,0.4732,4469.2,4469.1,0.715]
[1756678523625,0.4732,4469.2,4469.1,0.1915]
[1756678523833,0.2749,4469.1,4468.5,0.2965]
[1756678524033,0.4732,4468.7,4468.6,0.715]
[1756678524239,0.4732,4468.7,4468.6,0.93876]
[1756678524729,0.1983,4468.8,4468.7,0.2965]
[1756678524935,0.4732,4468.8,4468.7,0.715]
[1756678525628,0.2749,4469.4,4468.8,0.2965]
[1756678525934,0.4732,4469.7,4469.6,0.488]
[1756678526230,0.4732,4469.7,4469.6,0.715]
[1756678527531,0.4732,4470.1,4470.0,0.1915]
[1756678527830,0.4732,4470.1,4470.0,0.488]
[1756678544244,0.1983,4470.1,4469.7,3.2078]